fUST/lending_fUST_20251029
["ID","MTS","AMOUNT","RATE_DAILY","PERIOD"]
[392604767,1761731441402,-500.0,0.00022191,2]
[392604768,1761731441411,-500.0,0.00022191,2]
[392604769,1761731441421,-500.0,0.00022191,2]
[392604770,1761731441430,-633.05,0.00022191,2]
[392604771,1761731441439,-500.0,0.00022191,2]
[392604772,1761731441448,-500.0,0.00022191,2]
[392604773,1761731441457,-500.0,0.00022191,2]
[392604774,1761731441466,-500.0,0.00022191,2]
[392604775,1761731441476,-500.0,0.00022191,2]
[392604776,1761731441485,-500.0,0.00022191,2]
[392604777,1761731441494,-500.0,0.00022191,2]
[392604778,1761731441503,-500.0,0.00022191,2]
[392604779,1761731441512,-500.0,0.00022191,2]
[392604780,1761731441522,-500.0,0.00022191,2]
[392604781,1761731441531,-521.77,0.00022191,2]
[392604782,1761731441540,-500.0,0.00022191,2]
[392604783,1761731441549,-500.0,0.00022191,2]
[392604784,1761731441559,-500.0,0.00022191,2]
[392604785,1761731441568,-500.0,0.00022191,2]
[392604786,1761731441578,-500.0,0.00022191,2]
[392604787,1761731441587,-500.0,0.00022191,2]
[392604788,1761731441598,-500.0,0.00022191,2]
[392604789,1761731441608,-500.0,0.00022191,2]
[392604790,1761731441619,-500.0,0.00022191,2]
[392604791,1761731441629,-500.0,0.00022191,2]
[392604792,1761731441639,-206.34097834,0.00022191,2]
[392604793,1761731441648,-500.0,0.00022191,2]
[392604794,1761731441657,-684.04,0.00022191,2]
[392604795,1761731441667,-500.0,0.00022191,2]
[392604796,1761731441676,-500.0,0.00022191,2]
[392604797,1761731441685,-500.0,0.00022191,2]
[392604798,1761731441695,-500.0,0.00022191,2]
[392604799,1761731441704,-323.94437564,0.00022191,2]
[392604800,1761731441719,-176.05562436,0.00022191,2]
[392604801,1761731441728,-500.0,0.00022191,2]
[392604802,1761731441737,-720.05,0.00022191,2]
[392604803,1761731441746,-500.0,0.00022191,2]
[392604804,1761731441755,-500.0,0.00022191,2]
[392604805,1761731441764,-500.0,0.00022191,2]
[392604806,1761731441774,-500.0,0.00022191,2]
[392604807,1761731441783,-500.0,0.00022191,2]
[392604808,1761731441792,-500.0,0.00022191,2]
[392604809,1761731441801,-500.0,0.00022191,2]
[392604810,1761731441810,-500.0,0.00022191,2]
[392604811,1761731441819,-500.0,0.00022191,2]
[392604812,1761731441829,-500.0,0.00022191,2]
[392604813,1761731441838,-502.44271869,0.00022191,2]
[392604814,1761731441848,-500.0,0.00022191,2]
[392604815,1761731441857,-500.0,0.00022191,2]
[392604816,1761731441866,-500.0,0.00022191,2]
[392604817,1761731441876,-501.37713758,0.00022191,2]
[392604818,1761731441885,-500.0,0.00022191,2]
[392604819,1761731441894,-500.0,0.00022191,2]
[392604820,1761731441904,-500.0,0.00022191,2]
[392604821,1761731441914,-500.0,0.00022191,2]
[392604822,1761731441923,-500.0,0.00022191,2]
[392604823,1761731441932,-500.0,0.00022191,2]
[392604824,1761731441942,-500.0,0.00022191,2]
[392604825,1761731441951,-735.24,0.00022191,2]
[392604826,1761731441960,-500.0,0.00022191,2]
[392604827,1761731441970,-657.04,0.00022191,2]
[392604828,1761731441979,-500.0,0.00022191,2]
[392604829,1761731441988,-500.0,0.00022191,2]
[392604830,1761731441998,-500.0,0.00022191,2]
[392604831,1761731442011,-500.0,0.00022191,2]
[392604832,1761731442020,-500.0,0.00022191,2]
[392604833,1761731442030,-500.0,0.00022191,2]
[392604834,1761731442039,-500.0,0.00022191,2]
[392604835,1761731442048,-1058.93,0.00022191,2]
[392604836,1761731442059,-500.0,0.00022191,2]
[392604837,1761731442068,-500.0,0.00022191,2]
[392604838,1761731442078,-500.0,0.00022191,2]
[392604839,1761731442087,-500.0,0.00022191,2]
[392604840,1761731442097,-509.04,0.00022191,2]
[392604841,1761731442106,-500.0,0.00022191,2]
[392604842,1761731442117,-533.98,0.00022191,2]
[392604843,1761731442127,-719.47,0.00022191,2]
[392604844,1761731442138,-1928.58,0.00022191,2]
[392604845,1761731442148,-500.0,0.00022191,2]
[392604846,1761731442159,-500.0,0.00022191,2]
[392604847,1761731442170,-500.0,0.00022191,2]
[392604848,1761731442182,-500.0,0.00022191,2]
[392604849,1761731442192,-599.83,0.00022191,2]
[392604850,1761731442201,-500.0,0.00022191,2]
[392604851,1761731442212,-500.0,0.00022191,2]
[392604852,1761731442222,-500.0,0.00022191,2]
[392604853,1761731442231,-500.0,0.00022191,2]
[392604854,1761731442240,-500.0,0.00022191,2]
[392604855,1761731442250,-500.0,0.00022191,2]
[392604856,1761731442259,-707.83,0.00022191,2]
[392604857,1761731442268,-500.0,0.00022191,2]
[392604858,1761731442277,-500.0,0.00022191,2]
[392604859,1761731442287,-513.11,0.00022191,2]
[392604860,1761731442297,-115.32902077,0.00022191,2]
[392604866,1761731442466,-384.67097923,0.00022191,2]
[392604867,1761731442476,-561.25,0.00022191,2]
[392604868,1761731442485,-1049.11962663,0.00022191,2]
[392604869,1761731442500,-21.60037337,0.00022191,2]
[392604870,1761731442509,-545.62094937,0.00022191,2]
[392604871,1761731442520,-500.0,0.00022191,2]
[392604872,1761731442530,-500.0,0.00022191,2]
[392604873,1761731442539,-818.08,0.00022191,2]
[392604874,1761731442548,-500.0,0.00022191,2]
[392604875,1761731442557,-500.0,0.00022191,2]
[392604876,1761731442566,-500.0,0.00022191,2]
[392604877,1761731442575,-500.0,0.00022191,2]
[392604878,1761731442584,-500.0,0.00022191,2]
[392604879,1761731442595,-500.0,0.00022191,2]
[392604880,1761731442604,-560.35,0.00022191,2]
[392604881,1761731442614,-500.0,0.00022191,2]
[392604882,1761731442623,-665.82,0.00022191,2]
[392604883,1761731442633,-500.0,0.00022191,2]
[392604884,1761731442642,-500.0,0.00022191,2]
[392604885,1761731442651,-500.0,0.00022191,2]
[392604886,1761731442660,-1546.15,0.00022191,2]
[392604887,1761731442670,-500.0,0.00022191,2]
[392604888,1761731442680,-500.0,0.00022191,2]
[392604889,1761731442690,-500.0,0.00022191,2]
[392604890,1761731442699,-2617.72,0.00022191,2]
[392604891,1761731442708,-500.0,0.00022191,2]
[392604892,1761731442718,-566.74,0.00022191,2]
[392604893,1761731442727,-500.0,0.00022191,2]
[392604894,1761731442737,-500.0,0.00022191,2]
[392604895,1761731442747,-2872.7608824,0.00022191,2]
[392604896,1761731442762,-982.0391176,0.00022191,2]
[392604897,1761731442771,-500.0,0.00022191,2]
[392604898,1761731442780,-500.0,0.00022191,2]
[392604899,1761731442790,-500.0,0.00022191,2]
[392604900,1761731442800,-624.13,0.00022191,2]
[392604901,1761731442809,-500.0,0.00022191,2]
[392604902,1761731442818,-575.7,0.00022191,2]
[392604903,1761731442827,-500.0,0.00022191,2]
[392604904,1761731442836,-580.2,0.00022191,2]
[392604905,1761731442846,-778.14,0.00022191,2]
[392604906,1761731442855,-500.0,0.00022191,2]
[392604907,1761731442865,-500.0,0.00022191,2]
[392604908,1761731442916,-830.43,0.00022191,2]
[392604909,1761731442927,-500.0,0.00022191,2]
[392604910,1761731442936,-500.0,0.00022191,2]
[392604911,1761731442946,-500.0,0.00022191,2]
[392604912,1761731442957,-500.0,0.00022191,2]
[392604913,1761731442966,-500.0,0.00022191,2]
[392604914,1761731442975,-500.0,0.00022191,2]
[392604915,1761731442983,-500.0,0.00022191,2]
[392604916,1761731442993,-500.0,0.00022191,2]
[392604917,1761731443002,-500.0,0.00022191,2]
[392604918,1761731443011,-684.86,0.00022191,2]
[392604919,1761731443020,-857.52,0.00022191,2]
[392604920,1761731443029,-500.0,0.00022191,2]
[392604921,1761731443038,-901.73,0.00022191,2]
[392604922,1761731443047,-500.0,0.00022191,2]
[392604923,1761731443056,-500.0,0.00022191,2]
[392604924,1761731443065,-500.0,0.00022191,2]
[392604925,1761731443074,-500.0,0.00022191,2]
[392604926,1761731443084,-500.0,0.00022191,2]
[392604927,1761731443093,-500.0,0.00022191,2]
[392604928,1761731443102,-709.28,0.00022191,2]
[392604929,1761731443111,-500.0,0.00022191,2]
[392604930,1761731443119,-500.0,0.00022191,2]
[392604931,1761731443128,-721.63,0.00022191,2]
[392604932,1761731443137,-546.22,0.00022191,2]
[392604933,1761731443146,-383.36291868,0.00022191,2]
[392604934,1761731443155,-667.1,0.00022191,2]
[392604935,1761731443164,-563.77,0.00022191,2]
[392604936,1761731443174,-500.0,0.00022191,2]
[392604937,1761731443183,-500.0,0.00022191,2]
[392604938,1761731443192,-1161.79,0.00022191,2]
[392604939,1761731443201,-500.0,0.00022191,2]
[392604940,1761731443210,-500.0,0.00022191,2]
[392604941,1761731443219,-500.0,0.00022191,2]
[392604942,1761731443227,-500.0,0.00022191,2]
[392604943,1761731443236,-500.0,0.00022191,2]
[392604944,1761731443245,-925.42,0.00022191,2]
[392604945,1761731443254,-500.0,0.00022191,2]
[392604946,1761731443263,-577.61,0.00022191,2]
[392604947,1761731443271,-500.0,0.00022191,2]
[392604948,1761731443280,-500.0,0.00022191,2]
[392604949,1761731443289,-500.0,0.00022191,2]
[392604950,1761731443298,-500.0,0.00022191,2]
[392604951,1761731443307,-500.0,0.00022191,2]
[392604952,1761731443316,-500.0,0.00022191,2]
[392604953,1761731443325,-849.38,0.00022191,2]
[392604954,1761731443335,-500.0,0.00022191,2]
[392604955,1761731443344,-500.0,0.00022191,2]
[392604956,1761731443353,-856.91,0.00022191,2]
[392604957,1761731443362,-800.26,0.00022191,2]
[392604958,1761731443371,-500.0,0.00022191,2]
[392604959,1761731443380,-500.0,0.00022191,2]
[392604960,1761731443389,-298.05544242,0.00022191,2]
[392604961,1761731443398,-614.63,0.00022191,2]
[392604962,1761731443407,-1057.26,0.00022191,2]
[392604963,1761731443416,-500.0,0.00022191,2]
[392604964,1761731443425,-1190.53,0.00022191,2]
[392604965,1761731443434,-1227.97,0.00022191,2]
[392604966,1761731443444,-500.0,0.00022191,2]
[392604967,1761731443453,-1252.97,0.00022191,2]
[392604968,1761731443461,-569.25,0.00022191,2]
[392604969,1761731443470,-500.0,0.00022191,2]
[392604970,1761731443479,-2063.13,0.00022191,2]
[392604971,1761731443487,-1305.0,0.00022191,2]
[392604972,1761731443496,-500.0,0.00022191,2]
[392604973,1761731443505,-829.74,0.00022191,2]
[392604974,1761731443514,-500.0,0.00022191,2]
[392604975,1761731443524,-529.99,0.00022191,2]
[392604976,1761731443532,-500.0,0.00022191,2]
[392604977,1761731443541,-500.0,0.00022191,2]
[392604978,1761731443551,-500.0,0.00022191,2]
[392604979,1761731443560,-500.0,0.00022191,2]
[392604980,1761731443569,-500.0,0.00022191,2]
[392604981,1761731443578,-500.0,0.00022191,2]
[392604982,1761731443588,-1450.34,0.00022191,2]
[392604983,1761731443597,-314.54484795,0.00022191,2]
[392604984,1761731443606,-500.0,0.00022191,2]
[392604985,1761731443615,-500.0,0.00022191,2]
[392604986,1761731443624,-500.0,0.00022191,2]
[392604987,1761731443633,-500.0,0.00022191,2]
[392604988,1761731443642,-537.93,0.00022191,2]
[392604989,1761731443652,-500.0,0.00022191,2]
[392604990,1761731443660,-151.0,0.00022191,7]
[392604991,1761731443669,-500.0,0.00022191,2]
[392604992,1761731443678,-500.0,0.00022191,2]
[392604993,1761731443687,-500.0,0.00022191,2]
[392604994,1761731443696,-500.0,0.00022191,2]
[392604995,1761731443705,-500.0,0.00022191,2]
[392604996,1761731443714,-500.0,0.00022191,2]
[392604997,1761731443722,-500.0,0.00022191,2]
[392604998,1761731443732,-155.99646,0.0002225,7]
[392604999,1761731443741,-155.99646,0.0002228,2]
[392605000,1761731443750,-500.0,0.00022334,5]
[392605001,1761731443759,-155.99646,0.00022348,20]
[392605002,1761731443768,-300.0,0.00022354,20]
[392605003,1761731443778,-300.0,0.00022354,20]
[392605004,1761731443787,-300.0,0.00022354,20]
[392605005,1761731443796,-300.0,0.00022354,20]
[392605006,1761731443805,-300.0,0.00022354,20]
[392605007,1761731443814,-300.0,0.00022354,20]
[392605008,1761731443822,-300.0,0.00022354,20]
[392605009,1761731443832,-300.0,0.00022354,20]
[392605010,1761731443842,-300.0,0.00022354,20]
[392605011,1761731443851,-300.0,0.00022354,20]
[392605012,1761731443861,-300.0,0.00022354,20]
[392605013,1761731443870,-300.0,0.00022354,20]
[392605014,1761731443879,-300.0,0.00022354,20]
[392605015,1761731443889,-300.0,0.00022354,20]
[392605016,1761731443898,-300.0,0.00022354,20]
[392605017,1761731443908,-600.0,0.00022354,20]
[392605018,1761731443919,-500.0,0.00022359,2]
[392605019,1761731443929,-1113.25961602,0.00022402,2]
[392605020,1761731443939,-1436.5250828,0.00022442,2]
[392605021,1761731443948,-155.99646,0.00022443,20]
[392605022,1761731443957,-500.0,0.00022465,2]
[392605023,1761731443966,-500.0,0.00022465,2]
[392605024,1761731443975,-500.0,0.00022465,2]
[392605025,1761731443985,-500.0,0.00022465,2]
[392605026,1761731443994,-500.0,0.00022465,2]
[392605027,1761731444008,-500.0,0.00022465,2]
[392605028,1761731444017,-500.0,0.00022465,2]
[392605029,1761731444026,-500.0,0.00022465,2]
[392605030,1761731444035,-500.0,0.00022465,2]
[392605031,1761731444045,-500.0,0.00022465,2]
[392605032,1761731444054,-500.0,0.00022465,2]
[392605033,1761731444063,-500.0,0.00022465,2]
[392605034,1761731444072,-500.0,0.00022465,2]
[392605035,1761731444083,-500.0,0.00022465,2]
[392605036,1761731444092,-283.18917126,0.00022465,2]
[392605037,1761731444101,-500.0,0.00022465,2]
[392605038,1761731444110,-500.0,0.00022465,2]
[392605039,1761731444119,-500.0,0.00022465,2]
[392605040,1761731444128,-503.43174556,0.00022465,2]
[392605041,1761731444139,-500.0,0.00022465,2]
[392605042,1761731444148,-500.0,0.00022465,2]
[392605043,1761731444157,-500.0,0.00022465,2]
[392605044,1761731444166,-500.0,0.00022465,2]
[392605045,1761731444175,-500.0,0.00022465,2]
[392605046,1761731444184,-500.0,0.00022465,2]
[392605047,1761731444193,-500.0,0.00022465,2]
[392605048,1761731444202,-500.0,0.00022465,2]
[392605049,1761731444211,-500.0,0.00022465,2]
[392605050,1761731444220,-500.0,0.00022465,2]
[392605051,1761731444229,-500.0,0.00022465,2]
[392605052,1761731444239,-500.0,0.00022465,2]
[392605053,1761731444248,-529.66,0.00022465,2]
[392605054,1761731444257,-500.0,0.00022465,2]
[392605055,1761731444267,-500.0,0.00022465,2]
[392605056,1761731444276,-500.0,0.00022465,2]
[392605057,1761731444285,-500.0,0.00022465,2]
[392605058,1761731444295,-500.0,0.00022465,2]
[392605059,1761731444304,-500.0,0.00022465,2]
[392605060,1761731444313,-500.0,0.00022465,2]
[392605061,1761731444323,-500.0,0.00022465,2]
[392605062,1761731444332,-500.0,0.00022465,2]
[392605063,1761731444341,-500.0,0.00022465,2]
[392605064,1761731444350,-500.0,0.00022465,2]
[392605065,1761731444359,-500.0,0.00022465,2]
[392605066,1761731444368,-2160.25,0.00022465,2]
[392605067,1761731444378,-500.0,0.00022465,2]
[392605068,1761731444386,-500.0,0.00022465,2]
[392605069,1761731444395,-500.0,0.00022465,2]
[392605070,1761731444405,-500.0,0.00022465,2]
[392605071,1761731444414,-500.0,0.00022465,2]
[392605072,1761731444423,-500.0,0.00022465,2]
[392605073,1761731444432,-500.0,0.00022465,2]
[392605074,1761731444441,-500.0,0.00022465,2]
[392605075,1761731444450,-500.0,0.00022465,2]
[392605076,1761731444459,-500.0,0.00022465,2]
[392605077,1761731444468,-11.25380374,0.00022465,2]
[392605078,1761731444485,-488.74619626,0.00022465,2]
[392605079,1761731444495,-500.0,0.00022465,2]
[392605080,1761731444504,-500.0,0.00022465,2]
[392605081,1761731444513,-500.0,0.00022465,2]
[392605082,1761731444522,-806.08,0.00022465,2]
[392605083,1761731444532,-500.0,0.00022465,2]
[392605084,1761731444541,-500.0,0.00022465,2]
[392605085,1761731444550,-500.0,0.00022465,2]
[392605086,1761731444559,-633.37859317,0.00022465,2]
[392605087,1761731444568,-500.0,0.00022465,2]
[392605088,1761731444577,-500.0,0.00022465,2]
[392605089,1761731444587,-500.0,0.00022465,2]
[392605090,1761731444596,-500.0,0.00022465,2]
[392605091,1761731444605,-500.0,0.00022465,2]
[392605092,1761731444614,-500.0,0.00022465,2]
[392605093,1761731444623,-500.0,0.00022465,2]
[392605094,1761731444632,-500.0,0.00022465,2]
[392605095,1761731444643,-500.0,0.00022465,2]
[392605096,1761731444653,-500.0,0.00022465,2]
[392605097,1761731444662,-500.0,0.00022465,2]
[392605098,1761731444672,-391.51930408,0.00022465,2]
[392605099,1761731444691,-500.0,0.00021917,2]
[392605100,1761731444700,-109.04069592,0.00022465,2]
[392605101,1761731444709,-1026.09,0.00022465,2]
[392605102,1761731444718,-500.0,0.00022465,2]
[392605103,1761731444729,-500.0,0.00022465,2]
[392605104,1761731444738,-500.0,0.00022465,2]
[392605105,1761731444748,-500.0,0.00022465,2]
[392605106,1761731444758,-500.0,0.00022465,2]
[392605107,1761731444767,-500.0,0.00022465,2]
[392605108,1761731444778,-500.0,0.00022465,2]
[392605109,1761731444788,-500.0,0.00022465,2]
[392605110,1761731444800,-500.0,0.00022465,2]
[392605111,1761731444809,-500.0,0.00022465,2]
[392605112,1761731444819,-591.46,0.00022465,2]
[392605113,1761731444829,-412.90475586,0.00022465,2]
[392605114,1761731444838,-500.0,0.00022465,2]
[392605115,1761731444847,-530.84868613,0.00022465,2]
[392605116,1761731444857,-500.0,0.00022465,2]
[392605117,1761731444867,-352.27584032,0.00022465,2]
[392605118,1761731445049,-21.18341011,0.00022191,2]
[392605131,1761731446032,-478.81658989,0.00022191,2]
[392605132,1761731446042,-147.72415968,0.00022465,2]
[392605133,1761731446054,-214.1188704,0.00022465,2]
[392605136,1761731446363,2000.0,0.00033559,60]
[392605137,1761731446380,-1324.1,0.00022455,10]
[392605138,1761731446390,-285.8811296,0.00022465,2]
[392605139,1761731446399,-500.0,0.00022465,2]
[392605140,1761731446408,-500.0,0.00022465,2]
[392605141,1761731446418,-500.0,0.00022465,2]
[392605142,1761731446427,-500.0,0.00022465,2]
[392605143,1761731446436,-500.0,0.00022465,2]
[392605144,1761731446446,-500.0,0.00022465,2]
[392605145,1761731446455,-500.0,0.00022465,2]
[392605146,1761731446465,-500.0,0.00022465,2]
[392605147,1761731446474,-500.0,0.00022465,2]
[392605148,1761731446484,-500.0,0.00022465,2]
[392605149,1761731446493,-500.0,0.00022465,2]
[392605150,1761731446502,-500.0,0.00022465,2]
[392605151,1761731446512,-500.0,0.00022465,2]
[392605152,1761731446522,-500.0,0.00022465,2]
[392605153,1761731446531,-500.0,0.00022465,2]
[392605154,1761731446542,-500.0,0.00022465,2]
[392605155,1761731446551,-633.05,0.00022465,2]
[392605156,1761731446563,-500.0,0.00022465,2]
[392605157,1761731446572,-500.0,0.00022465,2]
[392605158,1761731446582,-357.88036485,0.00022465,2]
[392605159,1761731446594,-142.11963515,0.00022465,2]
[392605160,1761731446603,-500.0,0.00022465,2]
[392605161,1761731446613,-500.0,0.00022465,2]
[392605162,1761731446622,-500.0,0.00022465,2]
[392605163,1761731446631,-500.0,0.00022465,2]
[392605164,1761731446640,-500.0,0.00022465,2]
[392605165,1761731446650,-500.0,0.00022465,2]
[392605166,1761731446659,-500.0,0.00022465,2]
[392605167,1761731446668,-521.77,0.00022465,2]
[392605168,1761731446678,-500.0,0.00022465,2]
[392605169,1761731446687,-500.0,0.00022465,2]
[392605170,1761731446698,-500.0,0.00022465,2]
[392605171,1761731446708,-500.0,0.00022465,2]
[392605172,1761731446717,-500.0,0.00022465,2]
[392605173,1761731446726,-500.0,0.00022465,2]
[392605174,1761731446736,-500.0,0.00022465,2]
[392605175,1761731446746,-505.30948787,0.00022465,2]
[392605176,1761731446756,-500.0,0.00022465,2]
[392605177,1761731446766,-500.0,0.00022465,2]
[392605178,1761731446776,-500.0,0.00022465,2]
[392605179,1761731446788,-684.04,0.00022465,2]
[392605180,1761731446797,-500.0,0.00022465,2]
[392605181,1761731446808,-500.0,0.00022465,2]
[392605182,1761731446817,-500.0,0.00022465,2]
[392605183,1761731446826,-500.0,0.00022465,2]
[392605184,1761731446835,-500.0,0.00022465,2]
[392605185,1761731446845,-500.0,0.00022465,2]
[392605186,1761731446854,-720.05,0.00022465,2]
[392605187,1761731446863,-216.04341321,0.00022465,2]
[392605188,1761731446872,-500.0,0.00022465,2]
[392605189,1761731446882,-500.0,0.00022465,2]
[392605190,1761731446891,-500.0,0.00022465,2]
[392605191,1761731446900,-532.56013053,0.00022465,2]
[392605192,1761731446910,-500.0,0.00022465,2]
[392605193,1761731446920,-500.0,0.00022465,2]
[392605194,1761731446929,-500.0,0.00022465,2]
[392605195,1761731446938,-500.0,0.00022465,2]
[392605196,1761731446947,-500.0,0.00022465,2]
[392605197,1761731446956,-500.0,0.00022465,2]
[392605198,1761731446966,-500.0,0.00022465,2]
[392605199,1761731446976,-500.0,0.00022465,2]
[392605200,1761731446985,-566.33235688,0.00022465,2]
[392605201,1761731447150,-500.0,0.00022465,2]
[392605202,1761731447160,-500.0,0.00022465,2]
[392605203,1761731447171,-166.5091178,0.00022465,2]
[392605204,1761731447183,-333.4908822,0.00022465,2]
[392605205,1761731447192,-500.0,0.00022465,2]
[392605206,1761731447201,-500.0,0.00022465,2]
[392605207,1761731447212,-500.0,0.00022465,2]
[392605208,1761731447222,-735.24,0.00022465,2]
[392605209,1761731447232,-500.0,0.00022465,2]
[392605210,1761731447242,-657.04,0.00022465,2]
[392605211,1761731447252,-500.0,0.00022465,2]
[392605212,1761731447261,-30.92368182,0.00022465,2]
[392605213,1761731447273,-469.07631818,0.00022465,2]
[392605214,1761731447283,-500.0,0.00022465,2]
[392605215,1761731447292,-500.0,0.00022465,2]
[392605216,1761731447302,-500.0,0.00022465,2]
[392605217,1761731447311,-332.52368182,0.00022465,2]
[392605218,1761731481502,2000.0,0.00033559,60]
[392605219,1761731517386,2000.0,0.00033559,60]
[392605263,1761731552581,2000.0,0.00033559,60]
[392605265,1761731587233,631.71852313,0.00033537,60]
[392605272,1761731900082,471.421978,0.00033525,120]
[392605273,1761732066316,1441.2,0.0003013,120]
[392605292,1761732451123,-604.48812305,0.00018521,2]
[392605293,1761732451142,-150.0,0.00019312,2]
[392605294,1761732451162,-930.47169,0.00020103,2]
[392605295,1761732451181,-300.0,0.00020334,2]
[392605296,1761732451200,-300.0,0.00020335,2]
[392605297,1761732451219,-300.0,0.00020335,2]
[392605298,1761732451239,-300.0,0.00020335,2]
[392605299,1761732451260,-1200.0,0.00020335,2]
[392605300,1761732451279,-4457.05604878,0.00020336,2]
[392605301,1761732559094,-5188.94610422,0.00020336,2]
[392605302,1761732596264,380.0,0.00030137,120]
[392605339,1761732632251,-1200.0,0.00020521,2]
[392605340,1761732632262,-500.0,0.00020522,2]
[392605341,1761732632271,-500.0,0.00020522,2]
[392605342,1761732632280,-500.0,0.00020522,2]
[392605343,1761732632289,-500.0,0.00020522,2]
[392605344,1761732632298,-1205.545334,0.00021,2]
[392605345,1761732632308,-177.0,0.00021312,2]
[392605346,1761732632317,-300.0,0.00021346,2]
[392605347,1761732632327,-300.0,0.00021346,2]
[392605348,1761732632337,-300.0,0.00021346,2]
[392605349,1761732632346,-634.4843164,0.00021347,2]
[392605350,1761732632357,-3994.6363058,0.00021347,2]
[392605351,1761732632366,-2616.95409918,0.00021373,2]
[392605352,1761732632375,-1103.42,0.00021402,10]
[392605353,1761732632385,-500.0,0.00021411,2]
[392605355,1761732632394,-500.0,0.00021411,2]
[392605357,1761732632403,-500.0,0.00021411,2]
[392605359,1761732632412,-500.0,0.00021411,2]
[392605361,1761732632421,-177.43097166,0.00021411,2]
[392605363,1761732632430,-500.0,0.00021411,2]
[392605364,1761732632441,-500.0,0.00021411,2]
[392605365,1761732632451,-500.0,0.00021411,2]
[392605366,1761732632460,-500.0,0.00021411,2]
[392605367,1761732632469,-500.0,0.00021411,2]
[392605368,1761732632478,-500.0,0.00021411,2]
[392605369,1761732632487,-500.0,0.00021411,2]
[392605370,1761732632495,-500.0,0.00021411,2]
[392605371,1761732632504,-516.38681815,0.00021411,2]
[392605372,1761732632513,-500.0,0.00021411,2]
[392605373,1761732632522,-500.0,0.00021411,2]
[392605374,1761732632531,-500.0,0.00021412,2]
[392605375,1761732632540,-370000.0,0.00021412,2]
[392605376,1761732632549,-500.0,0.00021473,2]
[392605377,1761732632559,-500.0,0.00021473,2]
[392605378,1761732632567,-412.0,0.00021546,2]
[392605379,1761732632577,-500.0,0.00021686,2]
[392605380,1761732632587,-2167.0,0.00021811,2]
[392605381,1761732632596,-633.0,0.00021811,2]
[392605382,1761732632607,-403.72361849,0.00021817,3]
[392605383,1761732632616,-403.72361849,0.00021891,2]
[392605384,1761732632625,-500.0,0.00021896,2]
[392605385,1761732632634,-500.0,0.00021917,2]
[392605386,1761732632643,-500.0,0.00021917,2]
[392605387,1761732632652,-501.53101922,0.00021917,2]
[392605388,1761732632662,-500.0,0.00021917,2]
[392605389,1761732632671,-500.0,0.00021917,2]
[392605390,1761732632680,-500.0,0.00021917,2]
[392605391,1761732632689,-500.0,0.00021917,2]
[392605392,1761732632698,-500.0,0.00021917,2]
[392605393,1761732632707,-500.0,0.00021917,2]
[392605394,1761732632716,-517.48629303,0.00021917,2]